Cogmind - Beta 11.1 @@@ ROGUE MODE // 2022.05.14 @ 14:52:02 Player: laserbat Result: Destroyed by H-81 Overseer with Heavy Linear Accelerator Performance ------------- Evolutions (9) 4500 Regions Visited (11) 2200 Robots Destroyed (0) 0 Value Destroyed (0) 0 Prototype IDs (2) 40 Alien Tech Used (0) 0 Bonus (8406) 8406 TOTAL SCORE: 15146 Bonus ------- Pacifist 7906 Entered DSFs 500 Cogmind --------- Core Integrity 0/1600 Matter 300/300 Energy 100/100 System Corruption 0% Temperature Cool (0) Movement Core (50) Location -1/Access Parts ------- > --- POWER (1) -------- (None) > --- PROPULSION (8) --- (None) > --- UTILITY (14) ----- Hacking Suite Hacking Suite > --- WEAPON (2) ------- (None) > --- INVENTORY (5) ---- Micro Antimatter Reactor Improved Propulsion Shielding Drone Bay (0/2) Peak State ------------ > --- POWER ------------ Light Particle Reactor > --- PROPULSION ------- Improved Flight Unit Improved Flight Unit Improved Flight Unit Impulse Thruster Impulse Thruster Improved Diametric Drive > --- UTILITY ---------- Improved Propulsion Shielding Improved Propulsion Shielding Improved Propulsion Shielding Hacking Suite Hacking Suite Hacking Suite Hacking Suite > --- WEAPON ----------- (None) > --- INVENTORY -------- Micro Antimatter Reactor Drone Bay [Rating: 62] Favorites ----------- Power Nuclear Core Power Core Nuclear Core Reactor Light Particle Reactor Propulsion Improved Flight Unit Flight Unit Improved Flight Unit Utility Improved Propulsion Shielding Device Drone Bay Hackware Hacking Suite Protection Improved Propulsion Shielding Weapon None Build | -11 -10 -9 -8 -7 -7 -6 -5 -4 -3 -2 -1 ------- Run | Scr Mat Mat Mat Fac DSF Fac Fac Fac Res Res Acc Slots Evolved 18 | . . 2 2 2 . 2 2 2 2 2 2 Power . | . . . . . . . . . . . . Propulsion 6 | . . 2 . . . 2 . . . 2 . Utility 12 | . . . 2 2 . . 2 2 2 . 2 Weapon . | . . . . . . . . . . . . Parts Attached 22 | . 2 5 2 . 5 . 2 3 . . 3 Power 4 | . . 1 . . 1 . . 1 . . 1 Engine . | . . . . . . . . . . . . Core 3 | . . 1 . . 1 . . 1 . . . Reactor 1 | . . . . . . . . . . . 1 Propulsion 7 | . 2 2 . . . . . 1 . . 2 Treads . | . . . . . . . . . . . . Leg . | . . . . . . . . . . . . Wheel . | . . . . . . . . . . . . Hover . | . . . . . . . . . . . . Flight 7 | . 2 2 . . . . . 1 . . 2 Utility 11 | . . 2 2 . 4 . 2 1 . . . Device 1 | . . . . . 1 . . . . . . Storage . | . . . . . . . . . . . . Processor . | . . . . . . . . . . . . Hackware 5 | . . . . . 3 . 2 . . . . Protection 5 | . . 2 2 . . . . 1 . . . Artifact . | . . . . . . . . . . . . Weapon . | . . . . . . . . . . . . Energy Gun . | . . . . . . . . . . . . Energy Cannon . | . . . . . . . . . . . . Ballistic Gun . | . . . . . . . . . . . . Ballistic Cannon . | . . . . . . . . . . . . Launcher . | . . . . . . . . . . . . Special Weapon . | . . . . . . . . . . . . Impact Weapon . | . . . . . . . . . . . . Slashing Weapon . | . . . . . . . . . . . . Piercing Weapon . | . . . . . . . . . . . . Special Melee Weapon . | . . . . . . . . . . . . Unidentified Prototypes 2 | . 1 . . . . . . . . . 1 Parts Lost 17 | . . . . . 1 . . 2 . . 14 Power 4 | . . . . . 1 . . 1 . . 2 Propulsion 7 | . . . . . . . . . . . 7 Utility 6 | . . . . . . . . 1 . . 5 Weapon . | . . . . . . . . . . . . Highest Loss Streak 14 | . . . . . 1 . . 1 . . 14 To Critical Strikes . | . . . . . . . . . . . . Average Slot Usage (%) 59 | . 11 69 81 . 71 73 71 70 66 60 40 Core 3 | . . 6 9 . 5 6 5 3 4 4 1 Flight 23 | . 11 44 36 . 30 26 23 21 23 21 15 Hackware 14 | . . . . . 6 20 24 24 19 17 13 Protection 16 | . . 18 36 . 27 20 17 21 19 17 9 Naked Turns 33 | . 33 . . . . . . . . . . Heaviest Build 20 | . . 11 15 15 19 13 13 15 15 15 20 Greatest Support 34 | 3 10 20 20 20 20 20 20 27 27 27 34 Greatest Overweight (x) . | . . . . . . . . . . . . Average Overweight (x) . | . . . . . . . . . . . . Largest Inventory Capacity 5 | 5 5 5 5 5 5 5 5 5 5 5 5 Average Capacity 5 | 5 5 5 5 5 5 5 5 5 5 5 5 Most Carried 4 | 4 2 3 2 1 4 3 2 1 2 2 3 Average Carried 1 | 2 . 2 1 1 1 3 2 1 1 2 2 Final Capacity 5 | 5 5 5 5 5 5 5 5 5 5 5 5 Final Carried 3 | . 2 3 1 1 3 3 2 1 2 2 3 Class Distribution -------------------- 61% | Hacker-Sprinter 18% | Sprinter 16% | Hacker-Mutant 3% | Mutant Dominant Class ---------------- Mutant | -10/Materials Sprinter | -9/Materials Sprinter | -8/Materials Sprinter | -7/Factory Sprinter | -7/DSF Hacker-Sprinter | -6/Factory Hacker-Sprinter | -5/Factory Hacker-Mutant | -4/Factory Hacker-Sprinter | -3/Research Hacker-Sprinter | -2/Research Hacker-Sprinter | -1/Access Resources | -11 -10 -9 -8 -7 -7 -6 -5 -4 -3 -2 -1 ----------- Run | Scr Mat Mat Mat Fac DSF Fac Fac Fac Res Res Acc Matter Collected 323 | 200 . . . . 10 . . . . . 113 Remotely . | . . . . . . . . . . . . Salvage Created . | . . . . . . . . . . . . Parts . | . . . . . . . . . . . . Haulers Intercepted . | . . . . . . . . . . . . Recyclers Shooed . | . . . . . . . . . . . . Parts Field Recycled . | . . . . . . . . . . . . Retrieved Matter . | . . . . . . . . . . . . Parts Self-Destructed . | . . . . . . . . . . . . Prevented . | . . . . . . . . . . . . Kills | -11 -10 -9 -8 -7 -7 -6 -5 -4 -3 -2 -1 ------- Run | Scr Mat Mat Mat Fac DSF Fac Fac Fac Res Res Acc Combat Hostiles Destroyed . | . . . . . . . . . . . . Classes Destroyed . | . . . . . . . . . . . . Best Kill Streak . | . . . . . . . . . . . . Combat Bots Only . | . . . . . . . . . . . . Max Kills in Single Turn . | . . . . . . . . . . . . Gunslinging . | . . . . . . . . . . . . Exploded . | . . . . . . . . . . . . Melee . | . . . . . . . . . . . . Uniques/NPCs Destroyed . | . . . . . . . . . . . . Combat | -11 -10 -9 -8 -7 -7 -6 -5 -4 -3 -2 -1 -------- Run | Scr Mat Mat Mat Fac DSF Fac Fac Fac Res Res Acc Damage Taken 3388 | . 21 77 93 . 232 278 . 356 32 . 2299 Core 2143 | . 21 43 17 . 55 151 . 198 . . 1658 Absorbed by Shields . | . . . . . . . . . . . . Redirected to Shielding 369 | . . 7 21 . 39 58 . 39 20 . 185 Core Remaining (%) 93 | 100 91 89 96 . 92 82 100 82 100 100 . Volleys Fired . | . . . . . . . . . . . . Largest . | . . . . . . . . . . . . Hottest . | . . . . . . . . . . . . Shots Fired . | . . . . . . . . . . . . Gun . | . . . . . . . . . . . . Cannon . | . . . . . . . . . . . . Launcher . | . . . . . . . . . . . . Special . | . . . . . . . . . . . . Kinetic . | . . . . . . . . . . . . Thermal . | . . . . . . . . . . . . Explosive . | . . . . . . . . . . . . Electromagnetic . | . . . . . . . . . . . . Robot Hit Streak . | . . . . . . . . . . . . Robot Miss Streak . | . . . . . . . . . . . . Penetration Max . | . . . . . . . . . . . . Secondary Targets . | . . . . . . . . . . . . Shots Hit Robots . | . . . . . . . . . . . . Core Hits 1 | . . . . . . . . . . . 1 Critical Kills . | . . . . . . . . . . . . Critical Parts Destroyed . | . . . . . . . . . . . . Critical Strikes . | . . . . . . . . . . . . Melee Attacks . | . . . . . . . . . . . . Impact . | . . . . . . . . . . . . Slashing . | . . . . . . . . . . . . Piercing . | . . . . . . . . . . . . Sneak Attacks . | . . . . . . . . . . . . Combat Hostiles . | . . . . . . . . . . . . Follow-up Attacks . | . . . . . . . . . . . . Damage Inflicted 39 | . . . . . . . . . 7 . 32 Guns . | . . . . . . . . . . . . Cannons . | . . . . . . . . . . . . Explosions . | . . . . . . . . . . . . Melee . | . . . . . . . . . . . . Ramming 39 | . . . . . . . . . 7 . 32 Kinetic . | . . . . . . . . . . . . Thermal . | . . . . . . . . . . . . Explosive . | . . . . . . . . . . . . Electromagnetic . | . . . . . . . . . . . . Impact . | . . . . . . . . . . . . Slashing . | . . . . . . . . . . . . Piercing . | . . . . . . . . . . . . Highest Corruption 2 | . . . . . . . . 2 . . . Average Corruption 2 | . . . . . . . . 2 . . . Corruption Purged . | . . . . . . . . . . . . Corruption Blocked . | . . . . . . . . . . . . Overload Shots . | . . . . . . . . . . . . Overflow Damage . | . . . . . . . . . . . . Projectiles . | . . . . . . . . . . . . Explosions . | . . . . . . . . . . . . Melee . | . . . . . . . . . . . . Knockbacks . | . . . . . . . . . . . . Impact . | . . . . . . . . . . . . Kinetic . | . . . . . . . . . . . . Secondary . | . . . . . . . . . . . . Self-Inflicted Damage 18 | . . . . . . . . . 3 . 15 Shots . | . . . . . . . . . . . . Rammed 6 | . . . . . . . . . 1 . 5 Targets Rammed 6 | . . . . . . . . . 1 . 5 Kicked . | . . . . . . . . . . . . Crushed . | . . . . . . . . . . . . Highest Temperature 14 | . . 14 1 . . . . . . . . Average Temperature 9 | . . 11 1 . . . . . . . . Received Heat Transfer 111 | . 12 42 18 . . 18 . 12 9 . . Siege Activations . | . . . . . . . . . . . . Robots Corrupted . | . . . . . . . . . . . . Combat Hostiles . | . . . . . . . . . . . . Parts Fried . | . . . . . . . . . . . . Impact Corruptions . | . . . . . . . . . . . . Robots Melted . | . . . . . . . . . . . . Combat Hostiles . | . . . . . . . . . . . . Parts Melted . | . . . . . . . . . . . . Heat Transferred . | . . . . . . . . . . . . Parts Sabotaged . | . . . . . . . . . . . . Parts Stolen . | . . . . . . . . . . . . Parts Stripped . | . . . . . . . . . . . . Power Chain Reactions . | . . . . . . . . . . . . Missiles Intercepted . | . . . . . . . . . . . . Alert | -11 -10 -9 -8 -7 -7 -6 -5 -4 -3 -2 -1 ------- Run | Scr Mat Mat Mat Fac DSF Fac Fac Fac Res Res Acc Peak Influence 405 | . 28 66 57 25 21 243 135 405 317 193 220 Initial 212 | . . 11 27 25 21 . 119 65 212 177 115 Average 119 | . 10 31 39 25 14 90 133 184 259 189 140 Maximum Alert Level 2 | . . . . . . 1 . 2 1 . 1 Low Security (%) 81 | 100 100 100 100 100 100 84 100 59 . 100 93 Level 1 17 | . . . . . . 15 . 34 100 . 6 Level 2 . | . . . . . . . . 5 . . . Level 3 . | . . . . . . . . . . . . Level 4 . | . . . . . . . . . . . . Level 5 . | . . . . . . . . . . . . High Security . | . . . . . . . . . . . . Max Security . | . . . . . . . . . . . . Squads Dispatched 18 | . 3 3 2 . . 2 . 2 3 . 3 Investigation 10 | . 3 1 . . . 1 . 1 2 . 2 Extermination . | . . . . . . . . . . . . Reinforcement 8 | . . 2 2 . . 1 . 1 1 . 1 Assault . | . . . . . . . . . . . . Garrison . | . . . . . . . . . . . . Intercept . | . . . . . . . . . . . . Searches Triggered . | . . . . . . . . . . . . Construction Impeded . | . . . . . . . . . . . . Haulers Reinforced . | . . . . . . . . . . . . Active Scanning Responses . | . . . . . . . . . . . . Cargo Convoy Interrupts . | . . . . . . . . . . . . Stealth | -11 -10 -9 -8 -7 -7 -6 -5 -4 -3 -2 -1 --------- Run | Scr Mat Mat Mat Fac DSF Fac Fac Fac Res Res Acc Distress Signals 1 | . . . . . . . . 1 . . . Communications Jammed . | . . . . . . . . . . . . Distress Signals . | . . . . . . . . . . . . Times Spotted 100 | . 5 10 5 . 1 18 . 27 8 . 26 Peak Tracking Total 19 | . 6 8 6 . 1 11 . 11 8 1 19 Tactical Retreats 10 | . . . . . . 2 . 5 . . 3 Traps | -11 -10 -9 -8 -7 -7 -6 -5 -4 -3 -2 -1 ------- Run | Scr Mat Mat Mat Fac DSF Fac Fac Fac Res Res Acc Traps Triggered 5 | . 1 . . . 1 . . 2 . . 1 Indirectly . | . . . . . . . . . . . . Trap Hack Attempts . | . . . . . . . . . . . . Triggered . | . . . . . . . . . . . . Disarmed . | . . . . . . . . . . . . Reprogrammed . | . . . . . . . . . . . . Reused . | . . . . . . . . . . . . Traps Extracted . | . . . . . . . . . . . . Installed . | . . . . . . . . . . . . Triggered . | . . . . . . . . . . . . Machines | -11 -10 -9 -8 -7 -7 -6 -5 -4 -3 -2 -1 ---------- Run | Scr Mat Mat Mat Fac DSF Fac Fac Fac Res Res Acc Machines Disabled . | . . . . . . . . . . . . Max in Single Turn . | . . . . . . . . . . . . Machines Sabotaged . | . . . . . . . . . . . . Garrisons Compromised . | . . . . . . . . . . . . Overloaded Fab Kills . | . . . . . . . . . . . . Hacking | -11 -10 -9 -8 -7 -7 -6 -5 -4 -3 -2 -1 --------- Run | Scr Mat Mat Mat Fac DSF Fac Fac Fac Res Res Acc Machines Accessed 15 | . 2 2 1 1 . 3 1 . 2 1 2 Terminals 15 | . 2 2 1 1 . 3 1 . 2 1 2 Fabricators . | . . . . . . . . . . . . Repair Stations . | . . . . . . . . . . . . Recycling Units . | . . . . . . . . . . . . Scanalyzers . | . . . . . . . . . . . . Garrison Access . | . . . . . . . . . . . . Total Hacks 44 | . 7 10 2 1 . 8 4 . 7 1 4 Successful 15 | . 3 4 . 1 . 2 1 . 2 1 1 Failed 29 | . 4 6 2 . . 6 3 . 5 . 3 Catastrophic 2 | . 1 1 . . . . . . . . . Database Lockouts . | . . . . . . . . . . . . Manual 37 | . 7 10 2 . . 7 4 . 4 1 2 Terminals 44 | . 7 10 2 1 . 8 4 . 7 1 4 Fabricators . | . . . . . . . . . . . . Repair Stations . | . . . . . . . . . . . . Recycling Units . | . . . . . . . . . . . . Scanalyzers . | . . . . . . . . . . . . Garrison Access . | . . . . . . . . . . . . Terminal Hacks 11 | . 2 2 . 1 . 1 1 . 2 1 1 Open DSF 1 | . . . . 1 . . . . . . . Level Access Points 7 | . 1 1 . . . 1 1 . 1 1 1 Terminal Index 3 | . 1 1 . . . . . . 1 . . Fabricator Hacks . | . . . . . . . . . . . . Repair Station Hacks . | . . . . . . . . . . . . Recycling Unit Hacks . | . . . . . . . . . . . . Scanalyzer . | . . . . . . . . . . . . Garrison Access Hacks . | . . . . . . . . . . . . Unauthorized Hacks 4 | . 1 2 . . . 1 . . . . . Terminals 4 | . 1 2 . . . 1 . . . . . Assimilate 1 | . . . . . . 1 . . . . . Botnet 3 | . 1 2 . . . . . . . . . Fabricators . | . . . . . . . . . . . . Repair Stations . | . . . . . . . . . . . . Recycling Units . | . . . . . . . . . . . . Scanalyzers . | . . . . . . . . . . . . Garrison Access . | . . . . . . . . . . . . Data Cores Recovered . | . . . . . . . . . . . . Used . | . . . . . . . . . . . . Hacking Detections 13 | . 2 2 1 . . 3 1 . 2 . 2 Full Trace Events 7 | . 2 1 . . . 1 . . 2 . 1 Feedback Events . | . . . . . . . . . . . . Feedback Blocked . | . . . . . . . . . . . . Robot Schematics Acquired . | . . . . . . . . . . . . Robots Built . | . . . . . . . . . . . . Authchips . | . . . . . . . . . . . . Time . | . . . . . . . . . . . . Total Robot Build Rating . | . . . . . . . . . . . . Part Schematics Acquired . | . . . . . . . . . . . . Parts Built . | . . . . . . . . . . . . Authchips . | . . . . . . . . . . . . Time . | . . . . . . . . . . . . Total Part Build Rating . | . . . . . . . . . . . . Parts Repaired . | . . . . . . . . . . . . Time . | . . . . . . . . . . . . Parts Recycled . | . . . . . . . . . . . . Recycled Matter . | . . . . . . . . . . . . Retrieved Matter . | . . . . . . . . . . . . Retrieved Components . | . . . . . . . . . . . . Parts Scanalyzed . | . . . . . . . . . . . . Part Schematics Acquired . | . . . . . . . . . . . . Parts Damaged . | . . . . . . . . . . . . Bothacking | -11 -10 -9 -8 -7 -7 -6 -5 -4 -3 -2 -1 ------------ Run | Scr Mat Mat Mat Fac DSF Fac Fac Fac Res Res Acc Used RIF Installer . | . . . . . . . . . . . . Robots Hacked . | . . . . . . . . . . . . Non-combat . | . . . . . . . . . . . . Combat . | . . . . . . . . . . . . Robot Hacks Applied . | . . . . . . . . . . . . Relay Couplers Released . | . . . . . . . . . . . . Fabnet Peak Effective % . | . . . . . . . . . . . . Robots Rewired . | . . . . . . . . . . . . Allies Hacked . | . . . . . . . . . . . . Hacks Repelled . | . . . . . . . . . . . . Allies | -11 -10 -9 -8 -7 -7 -6 -5 -4 -3 -2 -1 -------- Run | Scr Mat Mat Mat Fac DSF Fac Fac Fac Res Res Acc Total Allies 1 | . . . . . . 1 . . . . . Largest Group 1 | . . . . . . 1 . . . . . Highest-Rated Group 26 | . . . . . . 26 . . . . . Highest-Rated Ally 26 | . . . . . . 26 . . . . . Total Orders . | . . . . . . . . . . . . Ally Attacks . | . . . . . . . . . . . . Total Damage . | . . . . . . . . . . . . Kills . | . . . . . . . . . . . . Allies Corrupted . | . . . . . . . . . . . . Allies Melted . | . . . . . . . . . . . . Intel | -11 -10 -9 -8 -7 -7 -6 -5 -4 -3 -2 -1 ------- Run | Scr Mat Mat Mat Fac DSF Fac Fac Fac Res Res Acc Robot Analysis Total . | . . . . . . . . . . . . Derelict Logs Recovered . | . . . . . . . . . . . . Drone Launches 2 | . . . . . 2 . . . . . . Drone Recoveries . | . . . . . . . . . . . . Exploration | -11 -10 -9 -8 -7 -7 -6 -5 -4 -3 -2 -1 ------------- Run | Scr Mat Mat Mat Fac DSF Fac Fac Fac Res Res Acc Turns Passed 731 | 3 54 63 29 4 46 107 46 127 55 29 168 Spaces Moved 2094 | 1 109 164 88 13 61 346 141 383 190 103 495 Core 155 | 1 64 . . . . . . . . . 90 Treads . | . . . . . . . . . . . . Legs . | . . . . . . . . . . . . Wheels . | . . . . . . . . . . . . Hover . | . . . . . . . . . . . . Flight 1939 | . 45 164 88 13 61 346 141 383 190 103 405 Fastest Speed 25 | 50 37 31 31 31 31 31 31 28 28 28 25 Average Speed 31 | 50 44 32 31 31 31 31 31 31 28 28 31 Slowest Speed 50 | 50 50 37 31 31 31 31 31 34 28 28 50 Overloaded Moves . | . . . . . . . . . . . . Propulsion Burnouts . | . . . . . . . . . . . . Robots Hopped 34 | . 3 4 1 . . 7 . 11 4 . 4 Cave-ins Triggered . | . . . . . . . . . . . . Exploration Rate (%) 16 | 2 23 21 14 1 75 16 6 12 8 3 17 Regions Visited 11 Branch Regions . Pre-discovered Areas . | . . . . . . . . . . . . Known Exits Taken 7 | . 1 1 . 1 . 1 1 . 1 1 . Unknown Exits Taken 3 | 1 . . 1 . . . . 1 . . . Scrap Searched . | . . . . . . . . . . . . Spaces Dug . | . . . . . . . . . . . . Terrain Destroyed . | . . . . . . . . . . . . Melee . | . . . . . . . . . . . . Projectile . | . . . . . . . . . . . . AOE . | . . . . . . . . . . . . Terrain Rammed . | . . . . . . . . . . . . Walls Destroyed . | . . . . . . . . . . . . Machines Disabled . | . . . . . . . . . . . . Actions | -11 -10 -9 -8 -7 -7 -6 -5 -4 -3 -2 -1 --------- Run | Scr Mat Mat Mat Fac DSF Fac Fac Fac Res Res Acc Total 2111 | 5 109 167 88 12 86 338 142 374 187 102 501 Wait . | . . . . . . . . . . . . Move 2023 | . 104 155 85 12 60 331 140 364 182 102 488 Hop 27 | . 1 4 1 . . 7 . 7 4 . 3 Pick Up 8 | . 2 3 . . 1 . . . 1 . 1 Fast Attach 14 | . 2 3 . . 4 . 1 2 . . 2 Attach 8 | . . 2 2 . 1 . 1 1 . . 1 Detach 3 | . . . . . 2 . . . . . 1 Swap . | . . . . . . . . . . . . Drop 5 | 5 . . . . . . . . . . . Fire . | . . . . . . . . . . . . Melee . | . . . . . . . . . . . . Ram 5 | . . . . . . . . . . . 5 Kick . | . . . . . . . . . . . . Crush . | . . . . . . . . . . . . Escape Stasis 18 | . . . . . 18 . . . . . . Rewire . | . . . . . . . . . . . . Trap . | . . . . . . . . . . . . Miscellaneous . | . . . . . . . . . . . . Route ------- -11/Scrapyard -10/Materials (discovered 3 exits: *Mat x3) -9/Materials (discovered 3 exits: *Mat x3) -8/Materials -7/Factory -7/DSF -6/Factory (discovered 4 exits: *Fac x4) -5/Factory (discovered 4 exits: *Fac x4) -4/Factory -3/Research (discovered 3 exits: *Res x3) -2/Research (discovered 3 exits: *Acc x3) -1/Access (discovered 1 exit: Sur) History --------- Turn | Location | Event 1 | -11/Scrapyard | Released all parts (6) 4 | -11/Scrapyard | Discovered new exit (range 0) 4 | -11/Scrapyard | Entered Materials 47 | -10/Materials | Identified exit to Materials 58 | -10/Materials | Entered another Materials area 58 | -9/Materials | Evolved 2 slots: Propulsion x2 92 | -9/Materials | Identified exit to Materials 121 | -9/Materials | Entered another Materials area 121 | -8/Materials | Evolved 2 slots: Utility x2 146 | -8/Materials | Discovered new exit (range 16) 150 | -8/Materials | Entered Factory 150 | -7/Factory | Evolved 2 slots: Utility x2 154 | -7/Factory | Identified exit to DSF 154 | -7/Factory | Entered DSF 187 | -7/DSF | Discovered new exit (range 15) 200 | -7/DSF | Additional patrols routed to DSF 200 | -7/DSF | Entered Factory 200 | -6/Factory | Evolved 2 slots: Propulsion x2 289 | -6/Factory | Identified exit to Factory 307 | -6/Factory | Entered another Factory area 307 | -5/Factory | Evolved 2 slots: Utility x2 312 | -5/Factory | Identified exit to Factory 353 | -5/Factory | Entered another Factory area 353 | -4/Factory | Evolved 2 slots: Utility x2 479 | -4/Factory | Discovered new exit (range 4) 480 | -4/Factory | Entered Research 480 | -3/Research | Evolved 2 slots: Utility x2 494 | -3/Research | Identified exit to Research 535 | -3/Research | Entered another Research area 535 | -2/Research | Evolved 2 slots: Propulsion x2 541 | -2/Research | Identified exit to Access 564 | -2/Research | Entered Access 564 | -1/Access | Evolved 2 slots: Utility x2 666 | -1/Access | Identified exit to Surface 700 | -1/Access | Core integrity fell below 50% 722 | -1/Access | Core integrity fell below 20% 732 | -1/Access | Destroyed by H-81 Overseer with Heavy Linear Accelerator Last Messages --------------- 00696_ Slug penetrates Wall. 00696_ Slammed into H-88 Terminator. 00696_ Destabilizing: Core damaged (-32). 00697_ Slammed into H-88 Terminator. 00698_ Acquired 96 matter. 00698_ Slammed into H-88 Terminator. 00699_ Penetrated by Slug. 00699_ Slammed into H-88 Terminator. 00702_ Penetrated by Slug. 00705_ Slug penetrates H-88 Terminator. 00705_ Wave Collapse Detector explodes. 00705_ S-43 Plague destroyed. 00706_ Slug penetrates Door. 00706_ Slug penetrates Wall. 00709_ Faulty Imp. Diametric Drive destroyed. 00715_ Knocked back. 00727_ Slammed into S-43 Plague. 00728_ Knocked back. 00731_ S-43 Plague destroyed. 00731_ Slug penetrates Wall. Map ----- +----------------------------------------------------+ | #??????????????????????????????????????????? | | #??????????????????????????????????????????? | | #??????????????????????????????????????????? | | #??????????????????????????????????????????? | | #??????????????????????????????????????????? | | #??????????????????????????????????????????? | | #????######????????????????????????????????? | | ?? ???### ###?????????????????????????????? | | ########## #?????????????????????????????? | | " ##????????????????????????????? | | ########### ?????????????????????????????? | | ??????????#%= ?????????????????????????????? | | ??????????# [ #?????????????????????????????? | | ??????????# %= #?????????????????????????????? | | ??????????# %= #?????????????????????????????? | | ??????????# #?????????????????????????????? | | ??????????# #?????????????????????????????? | | ??????????# #?????????????????????????????? | | ??????????#####/######???????????????????????????? | | ?????????????# +???????????????????????????? | | ?????????????# #####???????????????????????????? | | ?????????????# #???????????????????????????????? | | ?????????????# #???????????????????????????????? | | ?????????????# #???????????????????????????????? | | ?????????????# #??????##+##????????????????????? | | ?????#???????# #??????#@ ###???########???????? | | ?????# ??????# #??????# % # ?? #???????? | | ?????# ??????# #??????# %# #???????? | | ?????# ?????# #??????# # " #???????? | | ?????# ????# #??????# # """" #???????? | | ?????# ???# #??????# #""""" #???????? | | ?????# ??# #??????# # """"" #???????? | | ?????# ??# #??????#% # """" #???????? | | ?????? ?# #??????# %# " #???????? | | ?????# # +??????# s# #???????? | | ?????# # #??????# +% #???????? | | ?????# / #??????# % # #???????? | | ?????# # #??????# # #???????? | | ?????# # #??##?##b H##############???????? | | ????########## #### ## #???????????????????? | | ? % #???????????????????? | | ? ! #???????????????????? | | ? #???????????????????? | | ??###########+##### +### #???????????????????? | | ????????????????# #######???????????????????? | | ????????????????# #?????????????????????????? | | ????????????????# #?????????????????????????? | | ????????????????# #?????????????????????????? | | ????????????????# #?????????????????????????? | | ????????????????# #?????????????????????????? | +----------------------------------------------------+ Best States ------------- Heat Dissipation 52 Energy Generation 23 Energy Capacity 240 Matter Stores 300 Matter Capacity 300 Sight Range 16 Terrain Scan Density 10 Propulsion Shielding 66 Evasion (%) 65 Offensive Hacking 50 Item Schematics ----------------- None Robot Schematics ------------------ None Fabricated ------------ Nothing Alien Tech Used ----------------- None Achievements -------------- None Challenges ------------ None Game ------ Seed AerolevIntegratedDoomcannon Manual? 0 Play Time 00:18:03 Cumulative 257.8 hours Start 2022.05.14 @ 14:34:47 End 2022.05.14 @ 14:52:02 Sessions 1 Manual Loads 0 Difficulty Rogue Special Mode None Game No. 397 Rogue 394 Adventurer 0 Explorer 3 Win Type - Total 9 Types 9/0/0/0/0/0/0/0/0 Lore% 71 Gallery% 75 Achievement% 63 Wizard Run 0 Options --------- ASCII 1 Keyboard 0 Movement Vi Keybinds 0 Fullscreen 1 Font 18/SmallcapsGlow Map View 76x50 Tactical HUD 1 Map Filters NONE Filters NONE Steam 1 RUN: 83e867c1-7571-456a-8c13-0cfbae1d47ab